lending/lending_fUSD_20240219
["ID","MTS","AMOUNT","RATE_DAILY","PERIOD"]
[314453042,1708363846541,-160.0,0.00042,77]
[314453043,1708363846550,-3000.0,0.00042,2]
[314453044,1708363846560,-3000.0,0.00042,2]
[314453045,1708363846569,-3000.0,0.00042,2]
[314453046,1708363846579,-3000.0,0.00042,2]
[314453047,1708363846589,-3000.0,0.00042,2]
[314453048,1708363846598,-3196.15477557,0.00042,2]
[314453049,1708363846607,-1000.0,0.00042,18]
[314453050,1708363846616,-200.0,0.00042,2]
[314453051,1708363846626,-188.2612639,0.00042018,2]
[314453052,1708363846635,-479.56,0.00042092,15]
[314453053,1708363846644,-151.0,0.00042114,2]
[314453054,1708363846654,-250.49088,0.00042114,2]
[314453055,1708363846664,-662.48400601,0.00042184,10]
[314453056,1708363846674,-168.0,0.00042288,90]
[314453057,1708363846684,-188.2612639,0.00042375,2]
[314453058,1708363846693,-150.0,0.00042394,2]
[314453059,1708363846702,-233.0,0.0004247,4]
[314453060,1708363846711,-1608.1189807,0.000425,60]
[314453061,1708363846723,-4278.95279238,0.00042656,17]
[314453062,1708363846732,-319.96,0.00042665,2]
[314453063,1708363846741,-188.2612639,0.00042733,2]
[314453064,1708363846750,-81278.6642166,0.0004279,9]
[314453065,1708363846759,-15681.42689096,0.0004279,2]
[314453066,1708363846769,-44072.01704696,0.000428,5]
[314453067,1708363846778,-154.74336459,0.000428,2]
[314453068,1708363846787,-860.90209767,0.000428,2]
[314453069,1708363846796,-830.6925024,0.000428,4]
[314453070,1708363846805,-302.0,0.00042822,4]
[314453071,1708363846815,-160.4,0.00042838,2]
[314453072,1708363846825,-751.86285876,0.00042861,5]
[314453073,1708363846834,-167.73686612,0.00042886,2]
[314453074,1708363846843,-599.25826227,0.00042886,2]
[314453075,1708363846854,-721.0157381,0.00042887,2]
[314453076,1708363846864,-33513.91923728,0.00042976,10]
[314453077,1708363847513,-362.225,0.00042976,10]
[314453078,1708363847548,-2937.69999997,0.00042976,10]
[314453079,1708363847660,274.1193,0.00035,2]
[314453081,1708364827140,-624.76873264,0.00026249,2]
[314453082,1708364827161,-156.4188701,0.0002625,2]
[314453083,1708364827182,-5600.0,0.00035099,4]
[314453084,1708364827200,-1953.0,0.000351,3]
[314453085,1708364827221,-302.74,0.00036544,2]
[314453086,1708364827243,-464.06,0.0003714,2]
[314453087,1708364827264,-150.0,0.00038356,2]
[314453088,1708364827284,-151.21,0.00038412,2]
[314453089,1708364827303,-399.63,0.00038543,15]
[314453090,1708364827321,-600.0,0.00038552,2]
[314453091,1708364827344,-2493.92117045,0.00038611,14]
[314453092,1708364827365,-1893.26893643,0.00038611,14]
[314453093,1708364827386,-528.9272684,0.00038611,14]
[314453097,1708364955914,550.0,0.00025,3]
[314453098,1708364957009,600.0,0.00027,3]
[314453099,1708364958131,650.0,0.00029,3]
[314453104,1708365031824,-5600.0,0.0003861,4]
[314453105,1708365031834,-1452.77457813,0.00038611,14]
[314453106,1708365031844,-280.95252029,0.00038697,30]
[314453107,1708365031853,-88233.79693523,0.00038698,2]
[314453108,1708365031865,-6168.24965132,0.00038698,2]
[314453109,1708365031919,-281.58980738,0.00038698,2]
[314453112,1708365031936,-5316.36360607,0.00038698,2]
[314453114,1708365031945,-520.0,0.00038783,2]
[314453116,1708365031955,-302.74,0.00038808,2]
[314453118,1708365031965,-386.71,0.00038827,2]
[314453120,1708365031974,-202.0,0.00038877,2]
[314453122,1708365031984,-153.23,0.000389,3]
[314453124,1708365031995,-153.23,0.000389,3]
[314453126,1708365032007,-153.23,0.000389,3]
[314453128,1708365032016,-153.23,0.000389,3]
[314453130,1708365032026,-153.23,0.000389,3]
[314453132,1708365032036,-153.23,0.000389,3]
[314453134,1708365032046,-153.23,0.000389,3]
[314453136,1708365032056,-153.23,0.000389,3]
[314453138,1708365032066,-153.23,0.000389,3]
[314453141,1708365032075,-153.23,0.000389,3]
[314453142,1708365032085,-153.23,0.000389,3]
[314453144,1708365032096,-153.23,0.000389,3]
[314453146,1708365032106,-159.61,0.00038927,2]
[314453149,1708365032116,-151.0,0.00038984,2]
[314453151,1708365032126,-200.0,0.000391,30]
[314453153,1708365032135,-165.38,0.00039304,2]
[314453155,1708365032144,-4512.63054332,0.00039305,8]
[314453157,1708365032153,-1116.87605947,0.00039305,8]
[314453159,1708365032162,-232.70115648,0.00039305,8]
[314453161,1708365032172,-257.4752887,0.00039305,8]
[314453163,1708365032181,-1082.45805685,0.00039305,8]
[314453165,1708365032194,-150.0,0.00039367,2]
[314453167,1708365032203,-933.0,0.000395,9]
[314453169,1708365032212,-1029.0,0.000395,9]
[314453171,1708365032223,-693.53944611,0.00039525,2]
[314453173,1708365032232,-725.15843336,0.00039581,9]
[314453175,1708365032242,-15850.56192056,0.00039624,7]
[314453177,1708365032252,-2925.36415436,0.00039625,2]
[314453241,1708365037547,-553.54504564,0.00039625,2]
[314453242,1708365037557,-222639.4023,0.00039626,2]
[314453243,1708365037567,-206.0,0.0003975,2]
[314453244,1708365037576,-45573.8044308,0.00039781,7]
[314453245,1708365037586,-825.73385088,0.00039805,12]
[314453246,1708365037595,-255.0,0.0004,12]
[314453247,1708365037605,-255.0,0.0004,12]
[314453248,1708365037614,-228.0,0.0004,14]
[314453249,1708365037623,-255.0,0.0004,12]
[314453250,1708365037633,-255.0,0.0004,12]
[314453251,1708365037642,-255.0,0.0004,12]
[314453252,1708365037654,-1000.0,0.0004,10]
[314453253,1708365037664,-1000.0,0.0004,10]
[314453254,1708365037673,-255.0,0.0004,12]
[314453255,1708365037683,-1000.0,0.0004,10]
[314453256,1708365037693,-151.21,0.00040056,2]
[314453257,1708365037702,-5011.76,0.000403,2]
[314453258,1708365037711,-150.0,0.00040378,2]
[314453259,1708365037720,-45763.0783,0.0004052,2]
[314453260,1708365037729,-1000.0,0.000406,15]
[314453261,1708365037739,-693.5394461,0.00040622,3]
[314453262,1708365037748,-150.0,0.00040656,30]
[314453263,1708365037757,-238.560631,0.00040656,30]
[314453264,1708365037766,-155.64402528,0.00040656,60]
[314453265,1708365037775,-182.7869878,0.00040656,2]
[314453266,1708365037784,-1991.917289,0.00040656,30]
[314453267,1708365037793,-294.902,0.00040764,2]
[314453268,1708365037802,-216.0,0.00040764,2]
[314453269,1708365037811,-2586.0,0.00040764,2]
[314453270,1708365037820,-693.306,0.00040764,2]
[314453271,1708365037829,-150.0,0.00040764,2]
[314453272,1708365037838,-164.0,0.00040837,7]
[314453273,1708365037848,-725.1584333,0.0004084,10]
[314453274,1708365037857,-1000.0,0.000409,15]
[314453275,1708365037867,-250.0,0.0004096,2]
[314453276,1708365037875,-150.0,0.0004096,2]
[314453277,1708365037885,-196.6,0.0004096,7]
[314453279,1708365037895,-164.0,0.00040974,7]
[314453281,1708365037905,-200.0,0.00040987,15]
[314453282,1708365037915,-639.08343006,0.00040996,5]
[314453283,1708365037928,-200.0,0.00041,15]
[314453284,1708365037937,-152.0,0.00041063,3]
[314453285,1708365037949,-302.74,0.00041072,2]
[314453286,1708365037958,-155.0,0.00041085,7]
[314453287,1708365037968,-2380.6800426,0.00041095,2]
[314453297,1708365038065,-119.3199574,0.00041095,2]
[314453299,1708365038074,-22148.55,0.00041096,5]
[314453301,1708365038084,-183.0,0.00041096,2]
[314453303,1708365038095,-153.23,0.000411,4]
[314453306,1708365038105,-153.23,0.000411,4]
[314453308,1708365038114,-153.23,0.000411,4]
[314453309,1708365038124,-153.23,0.000411,4]
[314453312,1708365038133,-153.23,0.000411,4]
[314453313,1708365038143,-153.23,0.000411,4]
[314453315,1708365038153,-153.23,0.000411,4]
[314453316,1708365038162,-153.23,0.000411,4]
[314453317,1708365038171,-153.23,0.000411,4]
[314453318,1708365038181,-153.23,0.000411,4]
[314453319,1708365038192,-153.23,0.000411,4]
[314453320,1708365038201,-153.23,0.000411,4]
[314453321,1708365038211,-3644.78,0.000411,2]
[314453322,1708365038220,-3644.78,0.000411,2]
[314453323,1708365038230,-164.0,0.00041111,7]
[314453324,1708365038239,-1000.0,0.000412,15]
[314453325,1708365038249,-164.0,0.00041248,7]
[314453326,1708365038258,-164.0,0.00041385,7]
[314453327,1708365038268,-150.0,0.00041389,2]
[314453328,1708365038278,-500.0,0.00041507,2]
[314453329,1708365038287,-2972.08293337,0.00041643,120]
[314453330,1708365038297,-151.21,0.00041699,2]
[314453331,1708365038307,-693.5394461,0.00041719,4]
[314453332,1708365038317,-81035.6588651,0.0004189,8]
[314453333,1708365038326,-3644.78,0.0004189,2]
[314453334,1708365038336,-44355.93885646,0.000419,7]
[314453335,1708365038360,-13305.317025,0.000419,7]
[314453336,1708365038387,-405.49672308,0.000419,7]
[314453337,1708365038399,-502.48480135,0.000419,7]
[314453342,1708365042656,-15894.87973767,0.000419,7]
[314453343,1708365042666,-200.0,0.00041987,16]
[314453344,1708365042675,-200.0,0.00041987,21]
[314453345,1708365042684,-200.0,0.00042,16]
[314453346,1708365042693,-200.0,0.00042,2]
[314453347,1708365042705,-610.95,0.0004202,2]
[314453348,1708365042714,-500.0,0.00042055,2]
[314453349,1708365042724,-725.1584333,0.00042099,10]
[314453350,1708365042733,-180.0,0.00042253,2]
[314453351,1708365042742,-399.63,0.00042279,15]
[314453352,1708365042751,-150.0,0.000424,2]
[314453353,1708365042760,-158.88,0.00042489,2]
[314453354,1708365042770,-1608.1189807,0.000425,60]
[314453355,1708365042780,-202.0,0.000425,30]
[314453356,1708365042790,-200.0,0.00042532,7]
[314453357,1708365042799,-639.08342994,0.00042575,5]
[314453358,1708365042808,-3015.45,0.00042707,2]
[314453359,1708365042817,-410.4584356,0.000428,4]
[314453360,1708365042830,-693.5394461,0.00042817,5]
[314453361,1708365042839,-950.32169,0.00042887,16]
[314453362,1708365042848,-160.0,0.000429,82]
[314453363,1708365042857,-3000.0,0.000429,53]
[314453364,1708365042866,-303.84,0.000429,2]
[314453365,1708365042875,-3000.0,0.0004291,53]
[314453366,1708365042884,-5333.874982,0.0004292,53]
[314453367,1708365042893,-2000.0,0.00042976,7]
[314453368,1708365042902,-200.0,0.00042976,7]
[314453369,1708365042913,-58000.0,0.00042986,5]
[314453370,1708365042924,-200.0,0.00042987,17]
[314453371,1708365042934,-81035.6588651,0.0004299,10]
[314453372,1708365042943,-100000.0,0.00043,23]
[314453373,1708365042955,-200.0,0.00043,17]
[314453374,1708365042965,-202.0,0.00043,90]
[314453375,1708365042974,-162.0,0.00043,90]
[314453376,1708365042984,-1200.43445229,0.00043,2]
[314453377,1708365042994,-206.0,0.00043125,11]
[314453378,1708365043004,-151.0,0.00043316,2]
[314453379,1708365043013,-250.49088,0.00043316,2]
[314453380,1708365043023,-302.74,0.00043336,2]
[314453381,1708365043032,-151.21,0.00043343,2]
[314453382,1708365043042,-725.1584333,0.00043358,11]
[314453383,1708365043052,-600.0,0.00043371,2]
[314453384,1708365043061,-153.23,0.000434,4]
[314453385,1708365043070,-153.23,0.000434,4]
[314453386,1708365043080,-153.23,0.000434,4]
[314453387,1708365043089,-153.23,0.000434,4]
[314453388,1708365043100,-153.23,0.000434,4]
[314453389,1708365043111,-153.23,0.000434,4]
[314453390,1708365043120,-153.23,0.000434,4]
[314453391,1708365043130,-153.23,0.000434,4]
[314453392,1708365043140,-153.23,0.000434,4]
[314453393,1708365043156,-153.23,0.000434,4]
[314453394,1708365043166,-153.23,0.000434,4]
[314453395,1708365043175,-153.23,0.000434,4]
[314453396,1708365043185,-150.0,0.00043411,2]
[314453397,1708365043194,-5000.0,0.00043532,2]
[314453398,1708365043204,-672.13813135,0.000436,5]
[314453399,1708365043213,-150.0,0.00043614,30]
[314453400,1708365043222,-520.0,0.00043631,2]
[314453401,1708365043232,-5000.0,0.000438,120]
[314453402,1708365043241,-363.0,0.000438,2]
[314453403,1708365043251,-1659.5661555,0.000438,2]
[314453404,1708365043259,-500.0,0.000438,2]
[314453405,1708365043268,-4113.0,0.000438,30]
[314453406,1708365043277,-410.4584356,0.000438,5]
[314453407,1708365043287,-784.0,0.000438,30]
[314453408,1708365043296,-1993.61585891,0.000438,2]
[314453409,1708365043305,-1000.0,0.000438,2]
[314453410,1708365043314,-160.4,0.00043834,2]
[314453411,1708365043324,-800.0,0.00043835,2]
[314453412,1708365043333,-1963.7451,0.0004389,120]
[314453413,1708365043342,-500.0,0.0004389,30]
[314453414,1708365043352,-152.9796114,0.0004389,21]
[314453415,1708365043362,-3828.24249591,0.000439,18]
[314453416,1708365043371,-693.5394461,0.00043914,6]
[314453417,1708365043381,-200.0,0.00043987,18]
[314453418,1708365043390,-200.0,0.00043987,23]
[314453419,1708365043400,-81035.6588651,0.0004399,10]
[314453420,1708365043410,-100000.0,0.00044,24]
[314453421,1708365043419,-4281.40666433,0.00044,4]
[314453422,1708365043428,-17726.6114698,0.00044,8]
[314453423,1708365044104,-12125.05617091,0.00044,8]
[314453424,1708365044113,-102786.29489608,0.00044,32]
[314453425,1708365044123,-200.0,0.00044,18]
[314453426,1708365044132,-302.0,0.00044044,4]
[314453427,1708365044141,-200.0,0.000441,2]
[314453428,1708365044151,-639.08342994,0.00044154,5]
[314453429,1708365044160,-3828.24249585,0.00044284,19]
[314453430,1708365044169,-150.0,0.00044422,2]
[314453431,1708365044179,-355.991358,0.00044435,2]
[314453432,1708365044188,-631.21124864,0.00044438,30]
[314453433,1708365044198,-725.1584333,0.00044616,11]
[314453434,1708365044207,-800.0,0.00044657,2]
[314453435,1708365044216,-3828.24249585,0.00044667,19]
[314453436,1708365044225,-604.0,0.00044784,7]
[314453437,1708365044234,-410.4584356,0.000448,6]
[314453438,1708365044243,-610.95,0.0004482,2]
[314453439,1708365044252,-162.0,0.00044877,90]
[314453440,1708365044262,-190.408702,0.000449,95]
[314453441,1708365044271,-150.60901112,0.00044931,2]
[314453442,1708365044280,-81035.6588651,0.0004496,10]
[314453443,1708365044289,-81035.6588651,0.0004497,10]
[314453444,1708365044298,-175861.79330506,0.0004498,4]
[314453445,1708365044307,-200.0,0.00044987,19]
[314453446,1708365044316,-151.21,0.00044987,2]
[314453447,1708365044326,-100000.0,0.00045,35]
[314453448,1708365044335,-405.12230858,0.00045,4]
[314453449,1708365044344,-3492.3099693,0.00045,14]
[314453450,1708365044354,-200.0,0.00045,19]
[314453451,1708365044363,-500.0,0.00045,4]
[314453452,1708365044372,-182.7314899,0.00045,4]
[314453453,1708365044381,-1808.80729615,0.00045,10]
[314453454,1708365044390,-693.5394461,0.00045011,7]
[314453455,1708365044399,-3828.24249585,0.00045051,20]
[314453456,1708365044409,-200.0,0.0004508,20]
[314453457,1708365044418,-800.0,0.0004508,20]
[314453458,1708365044427,-200.0,0.0004508,30]
[314453459,1708365044437,-200.0,0.0004508,30]
[314453460,1708365044446,-1000.0,0.00045102,30]
[314453461,1708365044456,-150.0,0.00045432,2]
[314453462,1708365044465,-3828.24249585,0.00045434,20]
[314453463,1708365044474,-500.0,0.00045468,2]
[314453464,1708365044483,-500.0,0.00045468,2]
[314453465,1708365044493,-81035.6588651,0.00045469,10]
[314453466,1708365044502,-500.0,0.00045478,2]
[314453467,1708365044511,-500.0,0.00045478,2]
[314453468,1708365044520,-500.0,0.00045478,2]
[314453469,1708365044529,-500.0,0.00045478,2]
[314453470,1708365044539,-500.0,0.00045478,2]
[314453471,1708365044548,-500.0,0.00045478,2]
[314453472,1708365044557,-500.0,0.00045478,2]
[314453473,1708365044566,-500.0,0.00045478,2]
[314453474,1708365044575,-500.0,0.00045478,2]
[314453475,1708365044584,-500.0,0.00045478,2]
[314453476,1708365044593,-350.0,0.00045479,2]
[314453477,1708365044602,-500.0,0.00045479,2]
[314453478,1708365044611,-500.0,0.00045479,2]
[314453479,1708365044620,-500.0,0.00045479,2]
[314453480,1708365044630,-500.0,0.00045479,2]
[314453481,1708365044639,-500.0,0.00045479,2]
[314453482,1708365044648,-500.0,0.00045479,2]
[314453483,1708365044658,-500.0,0.00045479,2]
[314453484,1708365044667,-500.0,0.00045479,2]
[314453485,1708365044676,-250.0,0.00045479,2]
[314453486,1708365044686,-500.0,0.00045479,2]
[314453487,1708365044696,-500.0,0.00045479,2]
[314453488,1708365044706,-500.0,0.00045479,2]
[314453489,1708365044716,-500.0,0.00045479,2]
[314453490,1708365044725,-500.0,0.00045479,2]
[314453491,1708365044734,-500.0,0.00045479,2]
[314453492,1708365044743,-500.0,0.00045479,2]
[314453493,1708365044753,-500.0,0.00045479,2]
[314453494,1708365044762,-500.0,0.00045479,2]
[314453495,1708365044771,-500.0,0.00045479,2]
[314453496,1708365044780,-500.0,0.00045479,2]
[314453497,1708365044789,-500.0,0.00045479,2]
[314453498,1708365044799,-500.0,0.00045479,2]
[314453499,1708365044808,-500.0,0.00045479,2]
[314453500,1708365044817,-500.0,0.00045479,2]
[314453501,1708365044827,-500.0,0.00045479,2]
[314453502,1708365044836,-500.0,0.00045479,2]
[314453503,1708365044846,-500.0,0.00045479,2]
[314453504,1708365044854,-500.0,0.00045479,2]
[314453505,1708365044863,-500.0,0.00045479,2]
[314453506,1708365044873,-500.0,0.00045479,2]
[314453507,1708365044883,-500.0,0.00045479,2]
[314453508,1708365044892,-500.0,0.00045479,2]
[314453509,1708365044902,-500.0,0.00045479,2]
[314453510,1708365044913,-500.0,0.00045479,2]
[314453511,1708365044926,-500.0,0.00045479,2]
[314453512,1708365044935,-500.0,0.00045479,2]
[314453513,1708365044945,-500.0,0.00045479,2]
[314453514,1708365044956,-500.0,0.00045479,2]
[314453515,1708365044966,-500.0,0.00045479,2]
[314453516,1708365044976,-500.0,0.00045479,2]
[314453517,1708365044986,-500.0,0.00045479,2]
[314453518,1708365044995,-500.0,0.00045479,2]
[314453519,1708365045005,-500.0,0.00045479,2]
[314453520,1708365045015,-500.0,0.00045479,2]
[314453521,1708365045025,-500.0,0.00045479,2]
[314453522,1708365045035,-500.0,0.00045479,2]
[314453523,1708365045045,-500.0,0.00045479,2]
[314453524,1708365045054,-500.0,0.00045479,2]
[314453525,1708365045064,-500.0,0.00045479,2]
[314453526,1708365045073,-500.0,0.00045479,2]
[314453527,1708365045083,-500.0,0.00045479,2]
[314453528,1708365045092,-500.0,0.00045479,2]
[314453529,1708365045102,-500.0,0.00045479,2]
[314453530,1708365045111,-500.0,0.00045479,2]
[314453531,1708365045120,-500.0,0.00045479,2]
[314453532,1708365045130,-500.0,0.00045479,2]
[314453533,1708365045139,-500.0,0.00045479,2]
[314453534,1708365045148,-500.0,0.00045479,2]
[314453535,1708365045157,-500.0,0.00045479,2]
[314453536,1708365045167,-500.0,0.00045479,2]
[314453537,1708365045176,-500.0,0.00045479,2]
[314453538,1708365045185,-500.0,0.00045479,2]
[314453539,1708365045194,-500.0,0.00045479,2]
[314453540,1708365045205,-500.0,0.00045479,2]
[314453541,1708365045214,-500.0,0.00045479,2]
[314453542,1708365045223,-500.0,0.00045479,2]
[314453543,1708365045232,-500.0,0.00045479,2]
[314453544,1708365045241,-500.0,0.00045479,2]
[314453545,1708365045251,-500.0,0.00045479,2]
[314453546,1708365045261,-500.0,0.00045479,2]
[314453547,1708365045272,-500.0,0.00045479,2]
[314453548,1708365045285,-500.0,0.00045479,2]
[314453549,1708365045296,-500.0,0.00045479,2]
[314453550,1708365045306,-500.0,0.00045479,2]
[314453551,1708365045316,-500.0,0.00045479,2]
[314453552,1708365045325,-500.0,0.00045479,2]
[314453553,1708365045335,-500.0,0.00045479,2]
[314453554,1708365045345,-500.0,0.00045479,2]
[314453555,1708365045354,-500.0,0.00045479,2]
[314453556,1708365045363,-500.0,0.00045479,2]
[314453557,1708365045373,-500.0,0.00045479,2]
[314453559,1708365045383,-500.0,0.00045479,2]
[314453560,1708365045393,-500.0,0.00045479,2]
[314453561,1708365045402,-500.0,0.00045479,2]
[314453562,1708365045412,-500.0,0.00045479,2]
[314453563,1708365045421,-500.0,0.00045479,2]
[314453564,1708365045431,-500.0,0.00045479,2]
[314453565,1708365045441,-500.0,0.00045479,2]
[314453566,1708365045451,-500.0,0.00045479,2]
[314453567,1708365045461,-500.0,0.00045479,2]
[314453568,1708365045469,-500.0,0.00045479,2]
[314453569,1708365045478,-500.0,0.00045479,2]
[314453571,1708365045488,-500.0,0.00045479,2]
[314453572,1708365045497,-500.0,0.00045479,2]
[314453574,1708365045506,-500.0,0.00045479,2]
[314453575,1708365045516,-500.0,0.00045479,2]
[314453576,1708365045525,-500.0,0.00045479,2]
[314453577,1708365045535,-500.0,0.00045479,2]
[314453578,1708365045543,-500.0,0.00045479,2]
[314453579,1708365045552,-500.0,0.00045479,2]
[314453580,1708365045561,-500.0,0.00045479,2]
[314453581,1708365045570,-500.0,0.00045479,2]
[314453582,1708365045579,-500.0,0.00045479,2]
[314453583,1708365045589,-500.0,0.00045479,2]
[314453584,1708365045598,-500.0,0.00045479,2]
[314453585,1708365045607,-500.0,0.00045479,2]
[314453586,1708365045616,-500.0,0.00045479,2]
[314453587,1708365045626,-500.0,0.00045479,2]
[314453588,1708365045635,-500.0,0.00045479,2]
[314453589,1708365045644,-500.0,0.00045479,2]
[314453590,1708365045653,-500.0,0.00045479,2]
[314453591,1708365045662,-500.0,0.00045479,2]
[314453592,1708365045671,-500.0,0.00045479,2]
[314453593,1708365045681,-500.0,0.00045479,2]
[314453594,1708365045690,-500.0,0.00045479,2]
[314453595,1708365045701,-500.0,0.00045479,2]
[314453596,1708365045710,-500.0,0.00045479,2]
[314453597,1708365045719,-500.0,0.00045479,2]
[314453598,1708365045729,-500.0,0.00045479,2]
[314453599,1708365045738,-500.0,0.00045479,2]
[314453600,1708365045747,-500.0,0.00045479,2]
[314453601,1708365045756,-500.0,0.00045479,2]
[314453602,1708365045765,-500.0,0.00045479,2]
[314453603,1708365045775,-500.0,0.00045479,2]
[314453604,1708365045784,-500.0,0.00045479,2]
[314453605,1708365045793,-500.0,0.00045479,2]
[314453606,1708365045802,-500.0,0.00045479,2]
[314453607,1708365045812,-500.0,0.00045479,2]
[314453608,1708365045821,-500.0,0.00045479,2]
[314453609,1708365045830,-500.0,0.00045479,2]
[314453610,1708365045839,-500.0,0.00045479,2]
[314453611,1708365045848,-500.0,0.00045479,2]
[314453612,1708365045858,-500.0,0.00045479,2]
[314453613,1708365045867,-500.0,0.00045479,2]
[314453614,1708365045876,-500.0,0.00045479,2]
[314453615,1708365045885,-500.0,0.00045479,2]
[314453616,1708365045895,-500.0,0.00045479,2]
[314453617,1708365045904,-500.0,0.00045479,2]
[314453618,1708365045914,-500.0,0.00045479,2]
[314453619,1708365045927,-500.0,0.00045479,2]
[314453621,1708365045936,-800.0,0.00045479,2]
[314453622,1708365045946,-302.74,0.000456,2]
[314453623,1708365045958,-500.0,0.000456,4]
[314453624,1708365045968,-500.0,0.000456,4]
[314453625,1708365045977,-500.0,0.000456,4]
[314453626,1708365045987,-500.0,0.000456,4]
[314453627,1708365045997,-500.0,0.000456,4]
[314453628,1708365046006,-500.0,0.000456,4]
[314453629,1708365046016,-500.0,0.000456,4]
[314453630,1708365046026,-500.0,0.000456,4]
[314453631,1708365046035,-500.0,0.000456,4]
[314453632,1708365046045,-500.0,0.000456,4]
[314453633,1708365046054,-500.0,0.000456,4]
[314453634,1708365046064,-500.0,0.000456,4]
[314453635,1708365046073,-252.0,0.000456,4]
[314453636,1708365046082,-153.23,0.000456,5]
[314453637,1708365046092,-153.23,0.000456,5]
[314453638,1708365046104,-153.23,0.000456,5]
[314453639,1708365046113,-153.23,0.000456,5]
[314453640,1708365046123,-153.23,0.000456,5]
[314453641,1708365046132,-153.23,0.000456,5]
[314453642,1708365046141,-153.23,0.000456,5]
[314453643,1708365046151,-153.23,0.000456,5]
[314453644,1708365046160,-153.23,0.000456,5]
[314453645,1708365046170,-153.23,0.000456,5]
[314453646,1708365046319,-153.23,0.000456,5]
[314453647,1708365046329,-153.23,0.000456,5]
[314453648,1708365046340,-1134.38958111,0.00045644,10]
[314453649,1708365046350,-150.60901112,0.00045703,2]
[314453650,1708365046359,-639.08342994,0.00045733,5]
[314453651,1708365046368,-176.83350352,0.0004577,14]
[314453652,1708365046378,-500.0,0.0004577,14]
[314453653,1708365046388,-500.0,0.0004577,14]
[314453654,1708365046398,-500.0,0.0004577,14]
[314453655,1708365046407,-500.0,0.0004577,14]
[314453656,1708365046417,-500.0,0.0004577,14]
[314453657,1708365046427,-500.0,0.0004577,14]
[314453658,1708365046436,-500.0,0.0004577,14]
[314453659,1708365046446,-500.0,0.0004577,14]
[314453660,1708365046456,-500.0,0.0004577,14]
[314453661,1708365046465,-500.0,0.0004577,14]
[314453662,1708365046475,-410.4584356,0.000458,7]
[314453663,1708365046484,-3828.24249585,0.00045818,21]
[314453664,1708365046494,-12545.4551413,0.00045869,2]
[314453665,1708365046503,-1320.9,0.00045869,15]
[314453666,1708365046512,-1320.9,0.00045869,15]
[314453667,1708365046522,-1320.9,0.00045869,15]
[314453668,1708365046532,-1320.9,0.00045869,15]
[314453669,1708365046541,-725.1584333,0.00045875,12]
[314453670,1708365046550,-5000.0,0.0004589,7]
[314453671,1708365046560,-528.19243142,0.0004589,2]
[314453672,1708365046569,-166.77873039,0.0004589,2]
[314453673,1708365046579,-676.0676698,0.00045899,2]
[314453674,1708365046588,-399.50550818,0.000459,2]
[314453675,1708365046597,-480.67715874,0.000459,2]